bitfinex/quotes_SOLUSD_20251106
["timestamp","ask_amount","ask_price","bid_price","bid_amount"]
[1762413808348,0.66,159.36,159.3,0.72]
[1762413808648,3.41153567,159.34,159.3,61.8]
[1762413809142,0.66,159.33,159.3,61.8]
[1762413809828,0.66,159.33,159.3,68.07739277]
[1762413810718,0.66,159.33,159.3,71.48892844]
[1762413810925,0.66,159.35,159.3,72.20892844]
[1762413811125,0.66,159.34,159.3,72.20892844]
[1762413811326,0.66,159.34,159.3,71.48892844]
[1762413811539,0.66,159.34,159.3,72.20892844]
[1762413811721,0.66,159.36,159.31,31.10082769]
[1762413812032,4.07153567,159.38,159.33,3.41153567]
[1762413812246,4.07153567,159.38,159.33,10.79153567]
[1762413812432,0.66,159.37,159.33,10.79153567]
[1762413812632,3.51153567,159.39,159.34,4.13153567]
[1762413812838,0.1,159.39,159.35,3.41153567]
[1762413813054,0.1,159.39,159.36,3.41153567]
[1762413813246,0.76,159.39,159.35,10.79153567]
[1762413813559,0.1,159.39,159.37,3.41153567]
[1762413813731,0.1,159.39,159.37,6.27458721]
[1762413814245,0.1,159.39,159.38,3.41153567]
[1762413814439,0.1,159.39,159.37,9.68612288]
[1762413814825,0.1,159.39,159.36,10.40655909]
[1762413816147,0.1,159.39,159.36,0.72]
[1762413816346,0.1,159.39,159.37,2.18034307]
[1762413816951,0.1,159.39,159.37,10.24034307]
[1762413817136,0.1,159.39,159.37,9.54034307]
[1762413817653,0.1,159.39,159.37,15.81491586]
[1762413817850,0.1,159.39,159.37,16.51491586]
[1762413818062,0.1,159.39,159.37,14.33457279]
[1762413818346,0.1,159.39,159.37,15.81491586]
[1762413818554,0.1,159.39,159.37,16.51491586]
[1762413818947,0.1,159.39,159.38,2.18034307]
[1762413819361,0.1,159.39,159.37,15.81491586]
[1762413820057,0.1,159.39,159.37,13.63457279]
[1762413820860,0.1,159.39,159.38,2.18034307]
[1762413821659,0.1,159.39,159.38,8.45465603]
[1762413822035,0.1,159.39,159.37,7.36]
[1762413822238,0.1,159.39,159.38,2.18034307]
[1762413822454,0.1,159.39,159.38,9.54034307]
[1762413823340,0.1,159.39,159.38,7.36]
[1762413823535,0.1,159.39,159.38,13.63431296]
[1762413824047,0.1,159.39,159.38,6.27431296]
[1762413824246,0.1,159.39,159.37,10.24034307]
[1762413824744,0.1,159.39,159.37,16.51501396]
[1762413824945,0.1,159.39,159.38,2.88034307]
[1762413825145,0.1,159.39,159.38,10.24034307]
[1762413825457,0.1,159.39,159.38,8.06]
[1762413825658,0.1,159.39,159.38,16.51465603]
[1762413825872,0.1,159.39,159.38,15.81465603]
[1762413826048,0.1,159.39,159.38,16.51465603]
[1762413826767,0.1,159.39,159.38,9.54034307]
[1762413826944,0.1,159.39,159.38,13.63431296]
[1762413827850,0.1,159.39,159.38,14.33431296]
[1762413828160,0.1,159.39,159.38,16.51465603]
[1762413828856,0.1,159.39,159.38,7.36]
[1762413830259,0.1,159.39,159.38,13.63431296]
[1762413830847,0.1,159.39,159.38,7.36]
[1762413831271,0.1,159.39,159.35,62.0]
[1762413831445,0.1,159.39,159.36,7.36]
[1762413831446,2.94034307,159.39,159.36,7.36]
[1762413831764,0.1,159.39,159.36,8.06]
[1762413832279,0.1,159.39,159.37,6.27470665]
[1762413833150,0.1,159.39,159.37,15.81504972]
[1762413833365,0.1,159.39,159.38,0.72]
[1762413833752,0.1,159.39,159.38,8.08]
[1762413834150,0.1,159.39,159.38,14.35431296]
[1762413835562,0.1,159.39,159.38,13.63431296]
[1762413835780,0.1,159.39,159.38,7.36]
[1762413836072,0.1,159.39,159.37,7.36]
[1762413836255,0.1,159.39,159.37,13.63453294]
[1762413836755,0.1,159.39,159.37,14.35453294]
[1762413837544,0.1,159.39,159.37,15.81487601]
[1762413837757,0.1,159.39,159.38,0.72]
[1762413838091,0.1,159.39,159.38,10.26034307]
[1762413838444,0.1,159.39,159.38,26.32348372]
[1762413838654,0.1,159.39,159.38,88.32348372]
[1762413840047,0.1,159.39,159.38,20.592]
[1762413840248,0.1,159.39,159.38,21.312]
[1762413840458,0.1,159.39,159.38,37.12665603]
[1762413840657,0.1,159.39,159.38,34.94631296]
[1762413840855,0.1,159.39,159.38,39.55548372]
[1762413841059,0.1,159.39,159.38,46.91548372]
[1762413841269,2.84034307,159.46,159.38,47.24505744]
[1762413841450,0.1,159.47,159.43,2.18034307]
[1762413841649,0.1,159.47,159.46,32.56117076]
[1762413841871,0.1,159.47,159.46,39.92117076]
[1762413842080,0.1,159.47,159.46,40.64117076]
[1762413842252,0.1,159.47,159.46,43.48151383]
[1762413842449,0.1,159.47,159.46,49.75267901]
[1762413844085,0.1,159.47,159.46,50.0814658]
[1762413844453,0.1,159.47,159.46,42.7214658]
[1762413844655,0.1,159.48,159.47,9.78882769]
[1762413844885,0.1,159.48,159.47,12.68917076]
[1762413845265,0.1,159.48,159.47,20.04917076]
[1762413845562,0.1,159.55,159.5,20.592]
[1762413845777,0.1,159.55,159.52,2.18034307]
[1762413846289,0.1,159.55,159.54,2.18034307]
[1762413846455,0.1,159.55,159.54,8.44836362]
[1762413846656,0.1,159.55,159.54,9.16836362]
[1762413846984,0.1,159.55,159.54,71.16836362]
[1762413847873,0.1,159.55,159.54,182.87684824]
[1762413848177,0.1,159.55,159.54,185.05719131]
[1762413848779,0.1,159.55,159.54,182.87684824]
[1762413848978,0.1,159.55,159.54,175.88882769]
[1762413849159,0.1,159.55,159.54,169.00034307]
[1762413849475,0.1,159.55,159.54,26.31719131]
[1762413849676,0.1,159.59,159.58,30.38082769]
[1762413849882,0.1,159.59,159.58,40.24877864]
[1762413850177,0.1,159.59,159.58,40.96877864]
[1762413850673,0.1,159.59,159.58,47.23522806]
[1762413850877,0.1,159.59,159.58,45.05488499]
[1762413851078,0.1,159.59,159.54,31.34010279]
[1762413851079,0.1,159.59,159.57,27.57880821]
[1762413851381,0.1,159.59,159.58,39.92117076]
[1762413851693,1e-08,159.59,159.58,22.22951383]
[1762413851979,0.1,159.61,159.6,30.38082769]
[1762413852173,0.1,159.61,159.6,43.1489254]
[1762413852483,1e-08,159.61,159.6,43.1489254]
[1762413852658,1e-08,159.61,159.6,49.41458956]
[1762413853178,1e-08,159.61,159.6,42.05458956]
[1762413853375,1e-08,159.61,159.6,49.41458956]
[1762413854060,0.1,159.64,159.63,20.592]
[1762413854266,0.1,159.64,159.63,40.96828795]
[1762413854662,0.1,159.64,159.63,49.74257849]
[1762413855060,0.1,159.67,159.64,9.78882769]
[1762413855282,0.1,159.67,159.65,19.65613057]
[1762413855465,0.1,159.67,159.65,20.37613057]
[1762413855677,0.1,159.67,159.65,19.32917076]
[1762413855979,0.1,159.67,159.65,7.36]
[1762413856165,0.1,159.67,159.65,9.54034307]
[1762413857363,0.1,159.67,159.65,25.5928726]
[1762413858685,0.1,159.67,159.65,28.102834]
[1762413859268,0.1,159.67,159.65,6.26370184]
[1762413859569,0.1,159.67,159.65,18.31416382]
[1762413860089,0.1,159.67,159.65,15.80404491]
[1762413860488,0.1,159.67,159.65,16.52404491]
[1762413861083,0.1,159.67,159.65,26.6397936]
[1762413861282,0.1,159.67,159.66,32.56117076]
[1762413861481,0.1,159.67,159.66,33.28117076]
[1762413861667,0.1,159.67,159.66,31.10082769]
[1762413861867,0.1,159.67,159.66,12.68917076]
[1762413863259,0.1,159.67,159.66,18.95248029]
[1762413863664,0.1,159.67,159.66,21.46181186]
[1762413863880,0.1,159.67,159.66,28.80181186]
[1762413864181,1e-08,159.71,159.7,9.78882769]
[1762413864365,1e-08,159.71,159.7,19.30917076]
[1762413864767,1e-08,159.71,159.7,22.52834492]
[1762413865491,1e-08,159.71,159.7,28.79008568]
[1762413865870,1e-08,159.71,159.7,28.08008568]
[1762413866188,1e-08,159.71,159.7,28.79008568]
[1762413869186,1e-08,159.71,159.7,26.60974261]
[1762413869363,1e-08,159.71,159.7,28.79008568]
[1762413871279,1e-08,159.71,159.7,28.08008568]
[1762413871484,1e-08,159.71,159.7,18.29125799]
[1762413871790,0.69000001,159.71,159.7,9.84917416]
[1762413872001,0.69000001,159.71,159.7,7.34]
[1762413872696,0.69000001,159.71,159.7,13.60174076]
[1762413873285,0.69000001,159.71,159.7,15.78208383]
[1762413873796,1e-08,159.71,159.7,15.78208383]
[1762413876787,1e-08,159.71,159.7,26.23091152]
[1762413876975,1e-08,159.71,159.7,23.39056845]
[1762413877176,1e-08,159.71,159.7,24.05056845]
[1762413878480,1e-08,159.71,159.7,27.44212605]
[1762413879896,1e-08,159.71,159.7,17.65329836]
[1762413881004,1e-08,159.71,159.7,27.44212605]
[1762413881205,1e-08,159.71,159.7,29.95130021]
[1762413882704,0.2,159.75,159.74,30.38082769]
[1762413882875,0.2,159.75,159.74,41.77238529]
[1762413883281,0.2,159.75,159.74,49.8811028]
[1762413883597,0.2,159.75,159.74,50.5411028]
[1762413884592,0.1,159.77,159.74,66.19153475]
[1762413884787,0.1,159.77,159.76,13.18038529]
[1762413884998,0.1,159.77,159.76,20.52038529]
[1762413885217,0.1,159.77,159.76,21.18038529]
[1762413885387,0.1,159.77,159.76,26.77977437]
[1762413885589,0.1,159.77,159.76,27.43977437]
[1762413886011,0.1,159.77,159.76,51.42333197]
[1762413886503,0.1,159.77,159.76,48.03177437]
[1762413887081,0.1,159.77,159.76,51.42333197]
[1762413887409,0.1,159.77,159.76,51.74917481]
[1762413888618,1e-08,159.77,159.76,51.74917481]
[1762413889390,0.71,159.85,159.8,9.78882769]
[1762413889605,0.1,159.87,159.84,3.3915576]
[1762413889909,0.1,159.87,159.86,3.3915576]
[1762413890493,0.1,159.87,159.86,30.38082769]
[1762413890693,0.1,159.87,159.86,34.43238529]
[1762413891413,0.71,159.94,159.9,20.592]
[1762413891596,0.71,159.95,159.93,3.3915576]
[1762413891797,0.71,159.95,159.94,3.3915576]
[1762413892007,0.71,159.95,159.91,7.34]
[1762413892205,0.71,159.95,159.93,3.3915576]
[1762413892400,0.71,159.95,159.94,3.3915576]
[1762413892598,3.3915576,159.99,159.94,3.3915576]
[1762413892794,0.69,159.97,159.94,3.3915576]
[1762413893010,0.69,159.97,159.94,9.64373766]
[1762413893219,0.69,159.97,159.93,9.64424439]
[1762413893413,4.0815576,159.97,159.92,18.79404855]
[1762413893598,3.3915576,159.97,159.92,10.7315576]
[1762413893799,0.69,159.96,159.92,10.7315576]
[1762413894014,0.69,159.96,159.94,3.3915576]
[1762413895015,0.69,159.99,159.95,3.3915576]
[1762413895200,0.69,159.98,159.96,3.3915576]
[1762413895527,3.3915576,160.02,159.97,3.3915576]
[1762413895826,1.99999999,160.09,159.96,7.34]
[1762413895827,6.24615532,160.1,160.01,3.3915576]
[1762413896000,3.3915576,160.04,159.98,3.3915576]
[1762413896197,50.69,160.07,159.97,7.34]
[1762413896416,3.3915576,160.05,159.99,3.3915576]
[1762413896794,0.69,160.04,160.0,3.3915576]
[1762413896994,0.69,160.04,160.01,6.24950247]
[1762413897217,0.69,160.04,160.02,3.3915576]
[1762413897598,0.69,160.07,160.02,3.3915576]
[1762413897807,0.69,160.07,160.03,3.3915576]
[1762413898139,0.69,160.07,160.05,3.3915576]
[1762413898298,0.69,160.1,160.06,7.90481059]
[1762413898498,0.69,160.1,160.06,15.24481059]
[1762413898707,0.69,160.1,160.07,7.90481059]
[1762413899218,0.69,160.1,160.07,14.15204782]
[1762413899420,0.69,160.12,160.09,7.90481059]
[1762413899722,6.24415413,160.15,160.09,7.34]
[1762413900019,14.14896472,160.15,160.09,15.24481059]
[1762413900197,0.69,160.15,160.09,7.34]
[1762413900516,0.69,160.18,160.14,7.90481059]
[1762413900724,37.88623815,160.24,160.17,7.90481059]
[1762413900725,25.01385852,160.24,160.17,7.90481059]
[1762413901024,7.90481059,160.2,160.13,20.592]
[1762413901195,0.69,160.19,160.11,7.34]
[1762413901395,0.69,160.19,160.05,7.90481059]
[1762413901396,7.90481059,160.14,160.02,0.32227211]
[1762413901628,7.90481059,160.13,160.07,28.49681059]
[1762413901823,7.90481059,160.13,160.08,28.49681059]
[1762413902029,0.69,160.13,160.08,7.32]
[1762413902206,0.69,160.13,160.08,15.22481059]
[1762413902407,0.69,160.21,160.15,20.592]
[1762413902622,0.69,160.21,160.18,7.90481059]
[1762413903031,0.69,160.21,160.19,7.90481059]
[1762413903633,7.90481059,160.24,160.17,7.34]
[1762413903634,0.69,160.24,160.2,7.34]
[1762413903931,0.1,160.28,160.16,7.90481059]
[1762413903932,0.69,160.23,160.16,0.98164389]
[1762413904227,0.69,160.23,160.17,20.592]
[1762413904433,0.69,160.23,160.18,7.90481059]
[1762413904637,8.59481059,160.23,160.17,7.34]
[1762413904818,8.59481059,160.23,160.14,9.78882769]
[1762413904819,7.90481059,160.19,160.14,7.90481059]
[1762413905008,0.69,160.22,160.12,7.34]
[1762413905207,0.69,160.22,160.12,13.58530594]
[1762413905208,7.90481059,160.19,160.12,13.58530594]
[1762413905429,6.24180762,160.21,160.15,7.90481059]
[1762413905633,8.59481059,160.2,160.15,7.90481059]
[1762413906022,7.90481059,160.23,160.16,7.34]
[1762413906225,7.90481059,160.23,160.15,15.24481059]
[1762413906226,7.90481059,160.2,160.15,15.24481059]
[1762413906416,7.90481059,160.19,160.14,15.24481059]
[1762413906614,0.69,160.21,160.14,7.34]
[1762413906817,0.69,160.21,160.05,0.66]
[1762413906818,7.90481059,160.15,160.05,0.66]
[1762413907025,7.90481059,160.13,160.08,7.90481059]
[1762413907340,6.24414611,160.15,160.08,7.90481059]
[1762413907519,7.90481059,160.14,160.09,7.90481059]
[1762413907707,7.90481059,160.13,160.08,7.90481059]
[1762413908029,7.90481059,160.09,160.03,7.90481059]
[1762413908224,50.0,160.12,160.03,7.90481059]
[1762413908225,7.90481059,160.08,160.03,7.90481059]
[1762413908425,7.90481059,160.05,159.96,15.62810087]
[1762413908626,8.59481059,160.04,159.97,6.91117209]
[1762413908958,7.90481059,160.02,159.97,7.90481059]
[1762413909313,7.90481059,159.99,159.94,7.90481059]
[1762413909523,7.90481059,159.98,159.93,7.90481059]
[1762413909731,7.90481059,159.96,159.91,15.26481059]
[1762413910124,0.69,159.95,159.91,15.26481059]
[1762413910319,0.69,159.95,159.88,6.91440562]
[1762413910320,7.90481059,159.94,159.89,7.90481059]
[1762413910522,7.90481059,159.94,159.87,7.36]
[1762413910523,8.59481059,159.95,159.9,7.90481059]
[1762413910918,8.59481059,159.94,159.89,7.90481059]
[1762413911118,6.94255557,159.94,159.83,6.25664768]
[1762413911323,0.69,159.93,159.87,7.90481059]
[1762413911649,8.59481059,159.98,159.92,7.90481059]
[1762413911819,8.59481059,159.97,159.91,7.90481059]
[1762413912418,7.90481059,159.96,159.89,17.82882769]
[1762413912639,8.59481059,159.97,159.91,7.90481059]
[1762413912937,7.90481059,159.92,159.87,28.49681059]
[1762413913125,50.69,159.97,159.86,15.28481059]
[1762413913126,7.90481059,159.91,159.86,15.28481059]
[1762413913327,7.90481059,159.91,159.86,7.38]
[1762413913528,8.59481059,159.91,159.86,13.63540091]
[1762413913714,100.0,159.97,159.86,13.63540091]
[1762413913715,8.59481059,159.9,159.86,7.38]
[1762413913916,6.94158582,159.96,159.87,7.90481059]
[1762413914120,7.90481059,159.93,159.87,7.90481059]
[1762413914415,7.90481059,159.9,159.86,7.38]
[1762413914619,7.90481059,159.87,159.82,6.25678073]
[1762413914847,7.90481059,159.89,159.83,8.56481059]
[1762413915016,0.69,159.9,159.87,7.90481059]
[1762413915212,0.69,159.9,159.83,0.66]
[1762413915213,0.69,159.9,159.85,7.90481059]
[1762413915439,7.90481059,159.88,159.81,30.38082769]
[1762413915739,8.59481059,159.89,159.84,7.90481059]
[1762413916242,8.59481059,159.88,159.82,6.25703916]
[1762413916416,0.69,159.88,159.83,7.90481059]
[1762413916618,0.69,159.91,159.87,7.90481059]
[1762413917625,6.9435512,159.91,159.87,7.90481059]
[1762413917817,0.69,159.9,159.87,7.90481059]
[1762413918028,0.69,159.9,159.88,7.90481059]
[1762413918322,0.69,159.9,159.87,7.90481059]
[1762413918743,20.592,159.95,159.87,7.90481059]
[1762413919059,15.62734825,159.98,159.85,6.25575847]
[1762413919060,8.59481059,159.94,159.89,7.90481059]
[1762413919422,0.69,159.93,159.89,7.90481059]
[1762413919741,8.59481059,159.93,159.84,27.972]
[1762413920037,8.59481059,159.93,159.88,7.90481059]
[1762413920239,0.69,159.93,159.88,7.90481059]
[1762413920419,50.0,160.0,159.92,7.90481059]
[1762413920621,8.59481059,160.0,159.95,7.90481059]
[1762413920844,7.90481059,159.98,159.93,7.90481059]
[1762413921054,7.90481059,159.98,159.92,7.90481059]
[1762413921253,8.59481059,159.97,159.91,7.90481059]
[1762413921552,0.69,159.97,159.92,7.90481059]
[1762413921753,0.69,159.96,159.91,14.15815795]
[1762413922040,0.69,159.96,159.92,7.90481059]
[1762413922229,0.69,159.96,159.91,14.15815795]
[1762413922430,0.69,159.96,159.92,7.90481059]
[1762413922628,0.69,159.96,159.91,14.15815795]
[1762413922834,7.90481059,159.95,159.89,14.15903895]
[1762413923335,8.61481059,159.95,159.89,14.15903895]
[1762413923642,0.71,159.94,159.89,14.15903895]
[1762413923945,0.71,159.94,159.89,6.25422836]
[1762413924246,0.71,159.94,159.89,14.15903895]
[1762413924622,8.61481059,159.96,159.9,7.90481059]
[1762413925142,0.71,159.95,159.9,7.90481059]
[1762413925651,0.71,159.95,159.9,14.15841504]
[1762413925833,14.8667998,159.95,159.9,6.25360445]
[1762413926139,14.8667998,159.95,159.89,14.15904785]
[1762413926342,115.62787605,159.98,159.89,14.15904785]
[1762413926343,0.71,159.94,159.89,14.15904785]
[1762413926645,7.90481059,159.96,159.9,7.90481059]
[1762413926836,8.61481059,159.95,159.89,7.90481059]
[1762413927033,7.90481059,159.94,159.88,14.15942169]
[1762413927241,7.90481059,159.94,159.84,9.78882769]
[1762413927242,7.90481059,159.91,159.84,9.78882769]
[1762413927549,7.90481059,159.88,159.82,15.95481059]
[1762413927742,6.25508225,159.87,159.82,15.28481059]
[1762413927949,14.15989284,159.87,159.82,7.38]
[1762413928131,0.71,159.87,159.82,22.21177413]
[1762413928323,0.71,159.86,159.77,8.57481059]
[1762413928524,7.90481059,159.87,159.77,0.67]
[1762413928755,7.90481059,159.87,159.81,7.90481059]
[1762413929048,8.61481059,159.87,159.81,7.90481059]
[1762413929658,6.25437971,159.89,159.8,7.90481059]
[1762413929659,8.61481059,159.86,159.8,7.90481059]
[1762413929951,8.61481059,159.86,159.8,29.80694679]
[1762413930253,0.71,159.86,159.81,7.90481059]
[1762413930455,0.71,159.9,159.83,7.90481059]
[1762413930626,0.71,159.9,159.81,0.67]
[1762413930627,0.71,159.9,159.85,7.90481059]
[1762413930954,7.90481059,159.87,159.82,7.90481059]
[1762413931148,0.71,159.9,159.84,7.90481059]
[1762413931350,0.71,159.9,159.81,17.69363828]
[1762413931651,7.90481059,159.87,159.81,17.69363828]
[1762413931853,0.71,159.9,159.81,17.69363828]
[1762413931854,0.71,159.9,159.82,6.25703916]
[1762413932048,7.90481059,159.87,159.82,6.25703916]
[1762413932226,7.90481059,159.86,159.81,16.04612822]
[1762413932425,0.71,159.88,159.81,16.04612822]
[1762413932721,7.90481059,159.87,159.81,39.59451555]
[1762413933142,8.61481059,159.87,159.81,39.59451555]
[1762413933547,8.61481059,159.87,159.81,101.59451555]
[1762413933845,0.71,159.87,159.83,6.25664768]
[1762413934442,0.71,159.87,159.81,96.00721502]
[1762413934443,7.90481059,159.86,159.82,6.25699367]
[1762413934952,0.71,159.86,159.82,6.25699367]
[1762413935153,0.71,159.86,159.82,21.89959159]
[1762413935453,0.71,159.86,159.82,6.25699367]
[1762413936151,8.61481059,159.86,159.82,6.25699367]
[1762413936351,0.71,159.86,159.82,6.25699367]
[1762413936550,8.56481059,159.86,159.82,6.25699367]
[1762413936728,7.90481059,159.87,159.82,6.25699367]
[1762413937224,0.66,159.86,159.82,6.25699367]
[1762413937432,8.56481059,159.86,159.82,6.25699367]
[1762413937871,0.66,159.92,159.85,7.90481059]
[1762413938168,0.66,159.97,159.91,7.90481059]
[1762413938454,5.64005531,159.94,159.88,5.64005531]
[1762413938661,0.66,159.93,159.88,5.64005531]
[1762413939035,0.66,159.93,159.88,6.31005531]
[1762413939364,5.64005531,159.9,159.85,7.38]
[1762413939576,5.64005531,159.91,159.85,7.38]
[1762413939761,5.64005531,159.91,159.85,13.02005531]
[1762413939967,0.66,159.92,159.86,11.89552884]
[1762413940266,53.84395323,159.99,159.86,11.89552884]
[1762413940267,0.66,159.95,159.91,5.64005531]
[1762413940469,11.89164683,159.96,159.9,5.64005531]
[1762413940847,0.66,159.97,159.91,5.64005531]
[1762413941172,6.30005531,159.97,159.91,5.64005531]
[1762413941361,6.30005531,159.97,159.91,6.31005531]
[1762413941881,5.64005531,159.98,159.92,11.89318187]
[1762413942165,6.30005531,159.97,159.92,6.25312656]
[1762413942371,5.64005531,159.96,159.92,6.25312656]
[1762413942770,6.25039064,159.99,159.92,6.25312656]
[1762413942771,6.30005531,159.97,159.92,6.25312656]
[1762413943149,12.5514871,159.97,159.92,6.25312656]
[1762413943378,6.30005531,159.96,159.9,5.64005531]
[1762413943565,0.66,159.96,159.9,6.25383537]
[1762413943878,5.64005531,159.95,159.9,6.25383537]
[1762413944369,5.64005531,159.92,159.88,62.0]
[1762413944555,5.64005531,159.9,159.86,6.25516429]
[1762413944758,5.64005531,159.93,159.87,5.64005531]
[1762413945271,5.64005531,159.92,159.87,6.25481795]
[1762413945464,5.64005531,159.94,159.88,6.31005531]
[1762413945663,5.64005531,159.95,159.89,5.64005531]
[1762413945872,15.62591433,160.0,159.91,5.64005531]
[1762413946065,5.64005531,159.98,159.92,5.64005531]
[1762413946475,12.55044595,159.99,159.93,5.64005531]
[1762413946968,6.30005531,160.01,159.94,5.64005531]
[1762413947176,5.64005531,159.98,159.92,5.64005531]
[1762413947360,5.64005531,159.97,159.92,6.25312656]
[1762413947688,6.30005531,159.97,159.91,11.89351731]
[1762413947878,5.64005531,159.93,159.88,14.30458783]
[1762413948055,5.64005531,159.92,159.88,6.92458783]
[1762413948361,5.64005531,159.91,159.87,9.78882769]
[1762413948558,5.64005531,159.92,159.87,10.45882769]
[1762413948755,5.64005531,159.94,159.88,6.31005531]
[1762413948963,6.30005531,159.96,159.9,5.64005531]
[1762413949370,5.64005531,159.95,159.9,6.25367941]
[1762413949766,6.30005531,159.94,159.89,6.25420303]
[1762413949967,5.64005531,159.93,159.89,6.25420303]
[1762413950175,6.30005531,159.93,159.89,6.25420303]
[1762413950548,5.64005531,159.93,159.87,38.43082769]
[1762413950776,5.64005531,159.94,159.88,12.56465164]
[1762413951281,5.64005531,159.92,159.85,82.592]
[1762413951575,5.64005531,159.91,159.86,6.25547353]
[1762413951880,5.64005531,159.9,159.85,6.25577955]
[1762413952257,6.30005531,159.91,159.85,12.55583486]
[1762413952463,12.55363116,159.91,159.85,12.55583486]
[1762413952678,5.64005531,159.9,159.85,6.91577955]
[1762413953464,5.64005531,159.87,159.81,6.917283]
[1762413953660,5.64005531,159.88,159.82,5.64005531]
[1762413953864,5.64005531,159.88,159.82,6.30005531]
[1762413954560,5.64005531,159.88,159.82,12.55678311]
[1762413954961,6.31005531,159.89,159.83,6.30005531]
[1762413955175,11.89360087,159.91,159.85,5.64005531]
[1762413955376,12.56329288,159.92,159.85,5.64005531]
[1762413955581,12.56329288,159.92,159.86,5.64005531]
[1762413956078,12.56329288,159.92,159.85,6.30005531]
[1762413956274,12.56329288,159.92,159.86,5.64005531]
[1762413956478,12.56329288,159.92,159.85,6.30005531]
[1762413956681,12.56329288,159.92,159.86,6.25547353]
[1762413956875,5.64005531,159.91,159.86,6.25547353]
[1762413957269,5.64005531,159.9,159.86,6.25547353]
[1762413957771,12.56358895,159.91,159.86,6.25547353]
[1762413958085,5.64005531,159.89,159.84,6.255894]
[1762413958378,6.92353364,159.91,159.85,6.30005531]
[1762413958379,5.64005531,159.91,159.85,6.30005531]
[1762413958781,5.64005531,159.91,159.85,5.64005531]
[1762413958957,11.8932384,159.92,159.86,6.30005531]
[1762413959158,5.64005531,159.89,159.83,6.25662385]
[1762413959376,5.64005531,159.88,159.83,6.25662385]
[1762413959790,5.64005531,159.88,159.83,6.91662385]
[1762413959996,11.89441727,159.89,159.83,6.25662385]
[1762413960187,11.89441727,159.89,159.83,6.91662385]
[1762413960488,6.31005531,159.92,159.85,5.64005531]
[1762413960669,6.25273557,159.93,159.86,0.66]
[1762413960869,5.64005531,159.92,159.86,6.30005531]
[1762413961070,5.64005531,159.91,159.86,6.30005531]
[1762413961284,5.64005531,159.9,159.83,21.89824307]
[1762413961586,0.67,159.92,159.83,21.89824307]
[1762413961587,5.64005531,159.87,159.83,68.25662385]
[1762413961889,5.64005531,159.88,159.83,68.25662385]
[1762413962089,5.64005531,159.89,159.83,74.55667916]
[1762413962698,0.67,159.91,159.85,5.64005531]
[1762413962880,5.64005531,159.91,159.85,67.64005531]
[1762413963066,0.67,159.93,159.89,5.64005531]
[1762413963388,6.31005531,159.95,159.89,67.64005531]
[1762413963967,12.56207751,159.95,159.89,67.64005531]
[1762413964185,5.64005531,159.94,159.89,68.2542165]
[1762413964575,11.89207751,159.95,159.89,74.55427181]
[1762413964777,12.56207751,159.95,159.89,74.55427181]
[1762413965268,11.89207751,159.95,159.89,74.55427181]
[1762413965588,12.56171819,159.96,159.9,6.30005531]
[1762413965793,12.56171819,159.96,159.9,0.66]
[1762413966497,0.67,159.99,159.92,5.64005531]
[1762413966702,12.55978851,160.01,159.95,5.64005531]
[1762413966992,6.9197332,160.01,159.95,5.64005531]
[1762413967196,6.9197332,160.01,159.95,6.30005531]
[1762413967390,31.23706614,160.07,159.92,17.16882769]
[1762413967391,50.0,160.05,159.96,5.64005531]
[1762413967592,5.64005531,160.03,159.97,5.64005531]
[1762413967769,6.31005531,160.04,159.97,6.30005531]
[1762413967970,5.64005531,160.05,159.99,5.64005531]
[1762413968175,6.31005531,160.06,160.0,5.64005531]
[1762413968487,0.67,160.09,160.03,5.64005531]
[1762413968687,0.67,160.09,160.03,6.30005531]
[1762413968893,5.64005531,160.1,160.04,5.64005531]
[1762413969114,5.64005531,160.1,160.04,0.66]
[1762413969413,5.64005531,160.11,160.05,5.64005531]
[1762413969575,0.1,160.12,160.09,5.64005531]
[1762413970007,0.1,160.12,160.1,6.30005531]
[1762413970304,0.1,160.12,160.1,0.66]
[1762413970475,0.1,160.12,160.1,6.90595514]
[1762413970875,0.1,160.12,160.08,7.38]